lending/lending_fUSD_20240605
["ID","MTS","AMOUNT","RATE_DAILY","PERIOD"]
[328598324,1717591845941,-156.50573471,0.00029578,2]
[328598326,1717591845952,-155.49498097,0.00029578,2]
[328598328,1717591845961,-3112.48701713,0.00029578,2]
[328598330,1717591845970,-199.08762764,0.00029578,2]
[328598332,1717591845979,-155.50912462,0.00029578,2]
[328598334,1717591845989,-155.46011852,0.00029578,2]
[328598336,1717591845998,-170.91947149,0.00029578,2]
[328598338,1717591846007,-430.06927539,0.00029578,2]
[328598340,1717591846017,-193.44386989,0.00029578,2]
[328598342,1717591846026,-1319.63724125,0.00029578,2]
[328598344,1717591846038,-310.00429578,0.00029578,2]
[328598346,1717591846047,-157.34575862,0.00029578,2]
[328598348,1717591846057,-155.34432818,0.00029578,2]
[328598350,1717591846067,-310.25828624,0.00029578,2]
[328598352,1717591846076,-262.55165062,0.00029578,2]
[328598354,1717591846085,-155.52339425,0.00029578,2]
[328598356,1717591846095,-204.33323316,0.00029578,2]
[328598358,1717591846104,-155.22934908,0.00029578,2]
[328598360,1717591846113,-329.95096756,0.00029578,2]
[328598362,1717591846123,-795.38552975,0.00029578,2]
[328598365,1717591846132,-259.98179822,0.00029578,2]
[328598368,1717591846142,-283.89868087,0.00029578,2]
[328598371,1717591846151,-304.31611017,0.00029578,2]
[328598374,1717591846160,-156.61938978,0.00029578,2]
[328598377,1717591846170,-219.82537221,0.00029578,2]
[328598391,1717591846284,-624.84919594,0.00029578,2]
[328598393,1717591846294,-158.25592491,0.00029578,2]
[328598396,1717591846304,-245.76675641,0.00029578,2]
[328598397,1717591846313,-293.78069837,0.00029578,2]
[328598399,1717591846323,-158.65221279,0.00029578,2]
[328598402,1717591846332,-157.23474211,0.00029578,2]
[328598404,1717591846342,-265.85210799,0.00029578,2]
[328598406,1717591846355,-474.62275452,0.00029578,2]
[328598408,1717591846364,-285.32097099,0.00029578,2]
[328598410,1717591846373,-260.5996056,0.00029578,2]
[328598412,1717591846383,-1482.98922185,0.00029578,3]
[328598414,1717591846393,-494.82242539,0.00029578,2]
[328598416,1717591846402,-155.62880368,0.00029578,2]
[328598418,1717591846412,-200.83861794,0.00029578,2]
[328598420,1717591846421,-226.60426653,0.00029578,2]
[328598422,1717591846433,-664.4436507,0.00029578,2]
[328598424,1717591846442,-283.66237537,0.00029578,2]
[328598426,1717591846453,-185.81430284,0.00029578,2]
[328598428,1717591846462,-155.37775851,0.00029578,2]
[328598430,1717591846471,-429.6929047,0.00029578,2]
[328598432,1717591846480,-1278.17098251,0.00029578,2]
[328598434,1717591846490,-941.84820171,0.00029578,2]
[328598436,1717591846500,-155.86730534,0.00029578,2]
[328598438,1717591846509,-5000.0,0.00029578,2]
[328598440,1717591846518,-195.02071198,0.00029578,2]
[328598442,1717591846528,-1544.97546822,0.00029578,2]
[328598448,1717591846573,-1478.51479329,0.00029578,2]
[328598456,1717591846643,-1006.8,0.00028699,2]
[328598460,1717591846671,-577.99175918,0.00028699,2]
[328598970,1717591861445,364.93310385,0.0002252,2]
[328598971,1717591865261,155.78402403,0.0002252,2]
[328598972,1717591867850,348.69299748,0.0002252,2]
[328598973,1717591872793,3236.46432918,0.0002252,2]
[328598975,1717592815182,-176.371291,0.00017242,2]
[328598976,1717592815202,-481.6174682,0.00017243,2]
[328598977,1717592815222,-155.0,0.00022419,2]
[328598978,1717592815242,-531.5763,0.0002242,2]
[328598979,1717592815262,-54.64408553,0.0002252,2]
[328598980,1717592826098,-129.93591447,0.0002252,2]
[328598981,1717592826119,-299.99,0.0002252,7]
[328598982,1717592826140,-344.73837336,0.0002252,2]
[328598983,1717592831136,-155.25162664,0.0002252,2]
[328598984,1717592831159,-821.24,0.0002252,2]
[328598985,1717592831186,-9486.30651334,0.0002252,2]
[328598986,1717592831206,-289.58953642,0.0002252,2]
[328598987,1717592831228,-4986.67922968,0.0002252,2]
[328598988,1717592831249,-169.78,0.00024269,2]
[328598989,1717592831274,-152.22,0.00024269,2]
[328598990,1717592831295,-675.03,0.00024302,2]
[328598991,1717592831320,-21522.35,0.0002432,2]
[328598992,1717592831341,-598.36,0.00024344,2]
[328598993,1717592831363,-250.0,0.00024382,2]
[328598994,1717592831388,-177.38,0.00024384,2]
[328598995,1717592831408,-250.0,0.00024572,2]
[328598996,1717592831431,-250.0,0.00024685,2]
[328598997,1717592831451,-599.94303689,0.00025,2]
[328598998,1717592831472,-379.29,0.00025035,2]
[328598999,1717592831495,-1000.0,0.00025224,2]
[328599000,1717592831516,-195.57,0.00025726,2]
[328599001,1717592831537,-548.70135201,0.0002622,3]
[328599002,1717592831563,-155.15008392,0.00026299,2]
[328599003,1717592831586,-154.80751472,0.00026331,2]
[328599004,1717592831608,-151.63334375,0.0002635,2]
[328599005,1717592831632,-151.63334375,0.00026377,2]
[328599006,1717592831654,-154.80751472,0.00026457,2]
[328599007,1717592831678,-155.87527423,0.00026554,2]
[328599008,1717592831701,-2213.44915083,0.00026623,2]
[328599009,1717592831725,-1980.52330381,0.00026623,2]
[328599010,1717592831749,-3659.23496104,0.00026623,2]
[328599011,1717592955116,-205.65,0.00024384,2]
[328599012,1717592955139,-523.44,0.00024402,2]
[328599013,1717592955160,-1202.87340608,0.00025,2]
[328599014,1717592955181,-176.371291,0.0002578,2]
[328599015,1717592955202,-1000.0,0.00025781,2]
[328599016,1717592955227,-189.64,0.0002597,2]
[328599017,1717592955250,-154.43934161,0.00026004,2]
[328599018,1717592955271,-154.32889975,0.00026094,2]
[328599020,1717593019149,7067.55796297,0.00026094,2]
[328599024,1717593031913,-1280.56006859,0.00026094,2]
[328599025,1717593032046,-0.08828306,0.00026094,2]
[328599026,1717593032064,-3419.80072355,0.00026094,2]
[328599027,1717593032112,-2717.93239997,0.00026094,2]
[328599042,1717593040153,-20632.17955052,0.00026094,2]
[328599043,1717593040165,-1058.54526808,0.00026094,2]
[328599044,1717593040299,-15328.6886482,0.00026094,2]
[328599045,1717593040310,-155.15008392,0.0002632,2]
[328599046,1717593040320,-156.52286604,0.00026414,2]
[328599047,1717593040329,-150.7008733,0.00026495,2]
[328599048,1717593040339,-193.99,0.00026623,2]
[328599049,1717593040349,-7170.2298,0.00026623,2]
[328599050,1717593040359,-2500.0,0.00026623,2]
[328599051,1717593040368,-523.44,0.00026666,2]
[328599052,1717593040377,-1244.10777965,0.00026694,2]
[328599053,1717593040387,-1782.47097342,0.00026694,2]
[328599054,1717593040396,-152.22,0.00026696,2]
[328599055,1717593040406,-302.61221956,0.00026718,2]
[328599056,1717593040415,-338.23010405,0.00026722,2]
[328599057,1717593040425,-23572.66185421,0.00026723,2]
[328599061,1717593040733,-41006.25900004,0.00026723,2]
[328599062,1717593040798,-858.23096043,0.00026723,2]
[328599063,1717593040875,-0.13130457,0.00026723,2]
[328599064,1717593040899,-1910.82045222,0.00026723,2]
[328599121,1717593043156,-3422.13199392,0.00026723,2]
[328599128,1717593043248,-739.6905394,0.00026723,2]
[328599129,1717593043261,-5990.77150521,0.00026723,2]
[328599144,1717593046031,-3822.61879995,0.00026723,2]
[328599145,1717593048348,-8290.0,0.00026723,2]
[328599146,1717593111075,250.0,0.00024269,2]
[328599147,1717593186450,158.95,0.00025965,120]
[328599148,1717593709321,-176.371291,0.00017259,2]
[328599149,1717594016276,176.371291,0.00019451,2]
[328599150,1717594038734,-544.85,0.00023702,2]
[328599151,1717594038754,-6291.14405867,0.00024169,2]
[328599152,1717594050098,-2073.57364133,0.00024169,2]
[328599153,1717594050121,-3091.02279623,0.00024269,2]
[328599154,1717594146180,-517.6,0.00023221,2]
[328599155,1717594146202,-176.371291,0.00024168,2]
[328599156,1717594146222,-300.0,0.00024169,2]
[328599157,1717594146243,-2869.603709,0.00024269,2]
[328599158,1717594151115,-3996.00135988,0.00024269,2]
[328599159,1717594151137,-157.93,0.00024384,2]
[328599160,1717594151157,-196.91,0.00024384,2]
[328599161,1717594151176,-150.99,0.00024384,2]
[328599162,1717594151194,-365.02829833,0.00025,3]
[328599163,1717594151211,-1250.0,0.00025,2]
[328599164,1717594151230,-189.64,0.00025011,2]
[328599165,1717594164140,-1000.0,0.00025081,2]
[328599166,1717594164163,-1371.38,0.00025088,2]
[328599167,1717594164190,-499.99,0.00025088,2]
[328599168,1717594164214,-250.0,0.00025194,2]
[328599169,1717594164236,-250.0,0.00025318,2]
[328599170,1717594164261,-449.34,0.00025401,2]
[328599171,1717594164284,-2318.96,0.0002546,2]
[328599172,1717594164307,-517.6,0.00025485,2]
[328599173,1717594164328,-150.99,0.00025701,2]
[328599174,1717594164353,-195.71,0.00025745,2]
[328599175,1717594164375,-900.00000006,0.00026,2]
[328599176,1717594164396,-163.07280105,0.00026004,2]
[328599177,1717594164419,-154.43934161,0.00026092,2]
[328599178,1717594198698,250.0,0.00026119,2]
[328599182,1717594231990,-176.371291,0.00026166,2]
[328599183,1717594232000,-299.22,0.00026167,2]
[328599184,1717594232010,-154.32889975,0.00026247,2]
[328599185,1717594232019,-697.36653125,0.0002646,2]
[328599186,1717594232029,-4955.35707005,0.000265,2]
[328599187,1717594232038,-153.19437804,0.000265,2]
[328599188,1717594232048,-593.06114545,0.00026523,2]
[328599189,1717594232071,-521.15045734,0.00026523,2]
[328599200,1717594238188,-592.47260974,0.00026523,2]
[328599201,1717594238198,-2152.40520454,0.00026523,2]
[328599202,1717594238208,-1167.82218573,0.00026523,2]
[328599203,1717594238304,-1675.61166773,0.00026523,2]
[328599204,1717594238318,-2735.54611873,0.00026523,2]
[328599205,1717594238330,-558.0390436,0.00026523,2]
[328599206,1717594238341,-799.48690441,0.00026523,2]
[328599207,1717594238352,-560.56292369,0.00026523,2]
[328599217,1717594241608,-1948.66669813,0.00026523,2]
[328599259,1717594243980,-1996.08634593,0.00026523,2]
[328599305,1717594244240,-1031.64931205,0.00026523,2]
[328599307,1717594244249,-801.4756,0.00026523,2]
[328599309,1717594244260,-16041.4712,0.00026523,2]
[328599311,1717594244269,-11509.7571,0.00026523,2]
[328599313,1717594244278,-1302.1643,0.00026523,2]
[328599315,1717594244287,-155.18047406,0.00026618,2]
[328599317,1717594244297,-313.11538181,0.00026622,2]
[328599319,1717594244307,-1088.59430722,0.00026623,2]
[328599321,1717594244316,-100000.0,0.00026623,2]
[328599323,1717594244325,-152230.5923242,0.00026623,2]
[328599326,1717594244349,-356.10525633,0.00026623,2]
[328599344,1717594246144,-710.61,0.00026623,2]
[328599345,1717594246380,-4206.25159105,0.00026623,2]
[328599346,1717594280350,-523.5,0.0003,120]
[328599347,1717594307488,-158.95,0.00030292,120]
[328599348,1717594307517,-200.0,0.0003061,120]
[328599349,1717594322043,-200.0,0.0003121,120]
[328599350,1717594322071,-204.431116,0.00031262,120]
[328599351,1717594322099,-200.0,0.00031862,120]
[328599352,1717594334134,4741.7416,0.000249,2]
[328599353,1717594343344,155.87527423,0.00026106,2]
[328599354,1717594425722,199647.257418,0.00014,2]
[328599355,1717594425750,1351.084972,0.00014,2]
[328599356,1717594425775,4000.0,0.00014,2]
[328599357,1717594425799,4000.0,0.00014,2]
[328599358,1717594425973,4000.0,0.00014,2]
[328599359,1717594426010,4000.0,0.00014,2]
[328599360,1717594426035,4000.0,0.00014,2]
[328599361,1717594426060,4000.0,0.00014,2]
[328599362,1717594426084,4000.0,0.00014,2]
[328599363,1717594426111,140000.0,0.00014,2]
[328599364,1717594426140,1795473.04680776,0.00014,2]
[328599365,1717594447408,3940.06710841,0.000118,2]
[328599366,1717594454587,259.1,0.00011,2]
[328599368,1717594607127,421413.0493075,0.00014,2]
[328599369,1717594798819,-1000.0,0.0003,120]
[328599371,1717594813485,-206.403414,0.00030818,120]
[328599372,1717594813516,-245.51133,0.00031,120]
[328599374,1717595063531,158.95,0.00024929,120]
[328599376,1717595231114,-154.15186399,0.00017159,2]
[328599377,1717595231141,-1671.50943664,0.00017259,2]
[328599379,1717595238112,-1387.15397418,0.00017259,2]
[328599380,1717595238135,-2613.36034942,0.00017259,2]
[328599381,1717595251102,-445.3030614,0.00017259,2]
[328599382,1717595251123,-1699.37372463,0.00017259,2]
[328599383,1717595267071,-200.0,0.00031418,120]
[328599384,1717595267113,-200.0,0.00032188,120]
[328599385,1717595267146,-200.0,0.00032788,120]
[328599386,1717595267176,-1000.0,0.00032788,120]
[328599387,1717595267206,-500.0,0.00032876,120]
[328599388,1717595267233,-519.2665136,0.00032876,120]
[328599389,1717595267270,-150.0,0.00032966,120]
[328599390,1717595267303,-721.83187359,0.00033,120]
[328599391,1717595267334,-634.57071878,0.00033,120]
[328599392,1717595267363,-158.78117173,0.00033,120]
[328599393,1717595267394,-445.9447973,0.00033,120]
[328599394,1717595346124,-1359.28968619,0.00017259,2]
[328599395,1717595346146,-900.0,0.0002274,2]
[328599396,1717595346168,-581.48375279,0.000229,5]
[328599397,1717595346191,-576.3,0.00023377,2]
[328599398,1717595346212,-13396.01319011,0.000236,2]
[328599399,1717595346235,-781.96,0.000236,2]
[328599400,1717595346258,-499.99,0.000236,2]
[328599401,1717595346281,-150.0,0.00024356,2]
[328599402,1717595346304,-155.66,0.00024384,2]
[328599403,1717595346327,-168.51,0.00024384,2]
[328599404,1717595346351,-250.0,0.00024727,2]
[328599405,1717595346372,-2309.0,0.000249,2]
[328599406,1717595346393,-13180.82,0.000249,2]
[328599407,1717595346414,-169.78,0.00024929,2]
[328599408,1717595346436,-152.22,0.0002514,2]
[328599409,1717595346464,-157.37,0.00025259,2]
[328599410,1717595346486,-800.0,0.00025306,2]
[328599411,1717595346507,-986.14,0.00025455,2]
[328599412,1717595346531,-200.0,0.00025511,2]
[328599413,1717595346552,-150.99,0.00025511,2]
[328599414,1717595346575,-176.371291,0.00025553,2]
[328599415,1717595346596,-324.40312278,0.00025554,2]
[328599416,1717595348108,-163.09,0.00025637,2]
[328599417,1717595348133,-576.3,0.00025641,2]
[328599418,1717595370112,-2125.68220844,0.00026421,2]
[328599419,1717595370133,-1552.18137011,0.00026421,2]
[328599420,1717595370154,-2500.0,0.00026421,2]
[328599421,1717595370174,-1008.51021017,0.00026422,2]
[328599422,1717595370195,-1987.55118,0.0002645,2]
[328599423,1717595370214,-1245.82158304,0.0002652,2]
[328599424,1717595370234,-325.42886537,0.00026521,2]
[328599425,1717595370254,-1752.9549085,0.00026521,2]
[328599426,1717595412697,5022.2489397,0.00021033,2]
[328599448,1717595432357,-263.47322908,0.00026521,2]
[328599449,1717595432370,-3967.40597384,0.00026521,2]
[328599450,1717595432382,-565.2208109,0.00026521,2]
[328599451,1717595432394,-9100.19353499,0.00026521,2]
[328599452,1717595432407,-1203.63841064,0.00026521,2]
[328599453,1717595432512,-517.0536999,0.00026521,2]
[328599454,1717595432524,-1728.0087192,0.00026521,2]
[328599455,1717595432536,-615.77052,0.00026521,2]
[328599456,1717595432551,-13689.79288418,0.00026521,2]
[328599457,1717595432696,-451.63886766,0.00026521,2]
[328599458,1717595432708,-3518.43162772,0.00026521,2]
[328599459,1717595432719,-165557.65744715,0.00026521,2]
[328599488,1717595439966,-3704.83559507,0.00026521,2]
[328599489,1717595439978,-1805.21150924,0.00026521,2]
[328599490,1717595439997,-1997.88101444,0.00026521,2]
[328599491,1717595440010,-5991.6100958,0.00026521,2]
[328599492,1717595440022,-877.60338105,0.00026521,2]
[328599493,1717595440035,-3849.57905485,0.00026521,2]
[328599494,1717595440047,-1039.78869404,0.00026521,2]
[328599495,1717595440058,-1956.35571194,0.00026521,2]
[328599496,1717595440071,-420.16905086,0.00026521,2]
[328599497,1717595440082,-1248.13633923,0.00026521,2]
[328599500,1717595440127,-141.87847404,0.00026521,2]
[328599504,1717595440159,-367.6078,0.00026521,2]
[328599622,1717595443329,152.23,0.00025862,2]
[328599796,1717595445215,-3011.04319243,0.00026521,2]
[328599797,1717595445227,-1236.13216261,0.00026521,2]
[328599798,1717595445239,-10611.3,0.00026521,2]
[328599801,1717595445391,-3809.62729064,0.00026521,2]
[328599802,1717595445400,-7500.0,0.00026521,2]
[328599803,1717595445410,-170.10576068,0.00026522,2]
[328599804,1717595445422,-583.71513996,0.00026522,2]
[328599805,1717595445432,-1000.0,0.00026523,2]
[328599806,1717595445442,-7651.62331869,0.00026523,2]
[328599807,1717595445453,-44299.59228131,0.00026523,2]
[328599808,1717595445463,-712.0,0.000266,2]
[328599809,1717595445473,-151.74,0.00026611,2]
[328599810,1717595445487,-280.22659199,0.00026611,2]
[328599811,1717595445497,-151.74,0.00026611,2]
[328599812,1717595445506,-151.74,0.00026611,2]
[328599813,1717595445516,-151.74,0.00026611,2]
[328599814,1717595445526,-294.08734587,0.0002662,2]
[328599815,1717595445535,-500.0,0.0002662,2]
[328599816,1717595445545,-500.0,0.0002662,2]
[328599817,1717595445556,-500.0,0.0002662,2]
[328599818,1717595445568,-332.87972296,0.0002662,2]
[328599819,1717595445577,-201269.59550132,0.00026621,13]
[328599820,1717595445588,-155.5729,0.00026621,2]
[328599821,1717595445597,-756156.08684615,0.00026621,2]
[328599822,1717595445607,-1009.49307208,0.00026622,2]
[328599823,1717595445617,-2083.94569,0.00026623,2]
[328599824,1717595445627,-2388.29764858,0.00026662,2]
[328599825,1717595445637,-2668.0,0.000267,2]
[328599826,1717595445647,-872.63,0.00026712,2]
[328599827,1717595445657,-416.97,0.00026712,2]
[328599828,1717595445670,-872.63,0.00026712,2]
[328599829,1717595445680,-416.97,0.00026712,2]
[328599830,1717595445696,-416.97,0.00026712,2]
[328599831,1717595445707,-155.87527423,0.00026721,2]
[328599832,1717595445718,-154.2167748,0.00026761,2]
[328599833,1717595445728,-2125.68220842,0.00026808,2]
[328599834,1717595445738,-1552.18137003,0.00026808,2]
[328599835,1717595445748,-155.87527423,0.00026808,2]
[328599836,1717595445759,-1008.51021015,0.00026899,2]
[328599838,1717595445770,-2388.29764854,0.00026956,2]
[328599840,1717595445780,-161.21054668,0.00026974,2]
[328599842,1717595445791,-4026.19154543,0.00027,2]
[328599844,1717595445801,-163.10691351,0.00027039,2]
[328599846,1717595445810,-163.10691351,0.00027107,2]
[328599848,1717595445820,-871.79,0.00027123,2]
[328599850,1717595445830,-416.57,0.00027123,2]
[328599852,1717595445841,-2125.68220842,0.00027194,2]
[328599854,1717595445851,-1552.18137003,0.00027194,2]
[328599856,1717595445862,-325.42886535,0.00027197,2]
[328599858,1717595445872,-170.10576068,0.00027198,2]
[328599859,1717595445882,-155.87527423,0.00027223,2]
[328599860,1717595445892,-2388.29764854,0.00027251,2]
[328599861,1717595445903,-583.71513992,0.00027262,2]
[328599862,1717595445913,-155.15008393,0.00027313,2]
[328599863,1717595445926,-154.2167748,0.0002737,2]
[328599864,1717595445936,-1008.51021015,0.00027376,2]
[328599865,1717595445946,-154.2167748,0.00027379,2]
[328599866,1717595445957,-151.74,0.00027387,2]
[328599867,1717595445967,-579.28855316,0.00027397,2]
[328599868,1717595445977,-354.87,0.00027397,2]
[328599869,1717595445987,-766.25,0.00027397,10]
[328599871,1717595445998,-150.0,0.00027397,2]
[328599874,1717595446008,-150.0,0.00027397,2]
[328599877,1717595446018,-156.52286604,0.00027404,2]
[328599881,1717595446028,-180.0,0.00027512,2]
[328599885,1717595446038,-154.0,0.00027541,5]
[328599888,1717595446047,-2388.29764854,0.00027545,2]
[328599892,1717595446057,-2125.68220842,0.00027581,2]
[328599895,1717595446067,-1552.18137003,0.00027581,2]
[328599898,1717595446077,-151.74293971,0.00027611,2]
[328599901,1717595446087,-151.74293971,0.00027698,2]
[328599903,1717595446096,-176.371291,0.00027838,2]
[328599905,1717595446106,-885.31313169,0.00027838,2]
[328599907,1717595446115,-885.31313169,0.00027838,2]
[328599909,1717595446125,-885.31313169,0.00027838,2]
[328599911,1717595446135,-885.31313169,0.00027838,2]
[328599913,1717595446146,-885.31313169,0.00027838,2]
[328599915,1717595446155,-885.31313169,0.00027838,2]
[328599917,1717595446167,-885.31313169,0.00027838,2]
[328599920,1717595446176,-2388.29764854,0.00027839,2]
[328599921,1717595446186,-1008.51021015,0.00027853,2]
[328599923,1717595446195,-325.42886535,0.00027873,2]
[328599926,1717595446205,-170.10576068,0.00027873,2]
[328599928,1717595446215,-576.3,0.00027904,2]
[328599931,1717595446226,-1060.07951628,0.00027932,2]
[328599933,1717595446235,-150.0,0.00027945,2]
[328599935,1717595446245,-2125.68220842,0.00027967,2]
[328599936,1717595446255,-1552.18137003,0.00027967,2]
[328599938,1717595446266,-20000.0,0.00028,3]
[328599940,1717595446276,-583.71513992,0.00028001,2]
[328599942,1717595446286,-173.51,0.00028008,2]
[328599944,1717595446297,-465.808945,0.0002809,2]
[328599946,1717595446307,-1186.852889,0.0002809,2]
[328599948,1717595446318,-367.692118,0.0002809,2]
[328599949,1717595446327,-260.369756,0.0002809,2]
[328599951,1717595446337,-806.093437,0.0002809,2]
[328599952,1717595446347,-180.851124,0.0002809,2]
[328599953,1717595446356,-3089.741619,0.0002809,2]
[328599954,1717595446366,-1186.852889,0.0002809,2]
[328599955,1717595446376,-281.103207,0.0002809,2]
[328599956,1717595446387,-1340.782088,0.0002809,2]
[328599957,1717595446397,-1000.0,0.000281,2]
[328599958,1717595446407,-2388.29764854,0.00028134,2]
[328599959,1717595446418,-986.14,0.00028195,2]
[328599961,1717595446427,-325.861,0.00028218,2]
[328599962,1717595446437,-358.0,0.00028218,2]
[328599964,1717595446446,-977.0,0.00028218,2]
[328599966,1717595446456,-1267.0,0.00028218,2]
[328599968,1717595446466,-615.0,0.00028218,2]
[328599970,1717595446477,-206.0,0.00028218,2]
[328599972,1717595446487,-1648.0,0.00028218,2]
[328599973,1717595446501,-441.0,0.00028218,2]
[328599976,1717595446511,-439.0,0.00028218,2]
[328599978,1717595446521,-1163.225,0.00028218,2]
[328599979,1717595446531,-216.0,0.00028218,2]
[328599981,1717595446541,-215.033,0.00028218,2]
[328599983,1717595446550,-38015.0,0.00028218,2]
[328599985,1717595446563,-5777.0,0.00028218,2]
[328599987,1717595446575,-150.0,0.00028218,2]
[328599989,1717595446587,-150.0,0.00028218,2]
[328599991,1717595446597,-4834.97585644,0.00028218,2]
[328600019,1717595446877,-314.02414356,0.00028218,2]
[328600021,1717595446886,-150.0,0.00028218,2]
[328600022,1717595446895,-150.0,0.00028218,2]
[328600025,1717595446905,-445.713,0.00028218,2]
[328600027,1717595446914,-150.0,0.00028218,2]
[328600031,1717595446925,-252.946,0.00028218,2]
[328600034,1717595446935,-150.0,0.00028218,2]
[328600035,1717595446945,-150.0,0.00028218,2]
[328600039,1717595446955,-163.10691351,0.00028225,2]
[328600040,1717595446964,-1008.51021015,0.00028329,2]
[328600042,1717595446974,-25.13210523,0.00028354,2]
[328600045,1717595446986,-2100.55010319,0.00028354,2]
[328600049,1717595447009,-1552.18137003,0.00028354,2]
[328600053,1717595447023,-155.15008393,0.00028363,2]
[328600057,1717595447034,-154.2167748,0.00028382,2]
[328600059,1717595447046,-2388.29764854,0.00028428,2]
[328600061,1717595447056,-465.808945,0.00028441,2]
[328600063,1717595447067,-1186.852889,0.00028441,2]
[328600065,1717595447078,-367.692118,0.00028441,2]
[328600066,1717595447087,-806.093437,0.00028441,2]
[328600068,1717595447097,-3089.741619,0.00028441,2]
[328600069,1717595447107,-1186.852889,0.00028441,2]
[328600070,1717595447116,-281.103207,0.00028441,2]
[328600071,1717595447318,-1340.782088,0.00028441,2]
[328600072,1717595447328,-800.0,0.00028469,2]
[328600073,1717595447338,-150.0,0.00028507,2]
[328600074,1717595447348,-151.74293971,0.00028545,2]
[328600075,1717595447357,-155.2626538,0.00028547,2]
[328600076,1717595447367,-325.42886535,0.00028548,2]
[328600077,1717595447377,-170.10576068,0.00028549,2]
[328600078,1717595447387,-154.2167748,0.00028579,2]
[328600079,1717595447397,-491.23493381,0.00028699,2]
[328600080,1717595447407,-200.0,0.000287,2]
[328600081,1717595447418,-151.74,0.00028712,2]
[328600082,1717595447427,-2388.29764854,0.00028723,2]
[328600083,1717595447436,-2125.68220842,0.0002874,2]
[328600084,1717595447446,-1552.18137003,0.0002874,2]
[328600085,1717595447455,-583.71513992,0.00028741,2]
[328600086,1717595447465,-155.26265382,0.00028758,2]
[328600087,1717595447479,-465.808945,0.00028793,2]
[328600088,1717595447488,-1186.852889,0.00028793,2]
[328600089,1717595447498,-367.692118,0.00028793,2]
[328600090,1717595447507,-806.093437,0.00028793,2]
[328600091,1717595447517,-3089.741619,0.00028793,2]
[328600092,1717595447528,-1186.852889,0.00028793,2]
[328600093,1717595447538,-281.103207,0.00028793,2]
[328600094,1717595447547,-1340.782088,0.00028793,2]
[328600095,1717595447558,-2806.0,0.000288,5]
[328600096,1717595447568,-1008.51021015,0.00028806,2]
[328600097,1717595447578,-3692.778755,0.000289,2]
[328600098,1717595447588,-5000.0,0.00029,2]
[328600099,1717595447598,-900.1885298,0.00029,2]
[328600100,1717595447607,-20000.0,0.00029,4]
[328600101,1717595447617,-2388.29764854,0.00029017,2]
[328600102,1717595447626,-500.0,0.00029085,2]
[328600103,1717595447636,-200.0,0.00029085,2]
[328600104,1717595447645,-2125.68220842,0.00029127,15]
[328600105,1717595447654,-1552.18137003,0.00029127,15]
[328600106,1717595447664,-151.74293971,0.00029138,2]
[328600107,1717595447676,-465.808945,0.00029144,2]
[328600108,1717595447685,-1186.852889,0.00029144,2]
[328600109,1717595447694,-367.692118,0.00029144,2]
[328600110,1717595447704,-806.093437,0.00029144,2]
[328600111,1717595447714,-3089.741619,0.00029144,2]
[328600112,1717595447724,-1186.852889,0.00029144,2]
[328600113,1717595447733,-281.103207,0.00029144,2]
[328600114,1717595447743,-1340.782088,0.00029144,2]
[328600115,1717595447752,-151.0,0.00029144,7]
[328600116,1717595447761,-151.0,0.00029144,7]
[328600117,1717595447770,-155.15008393,0.00029156,2]
[328600118,1717595447780,-154.2167748,0.00029159,2]
[328600119,1717595447789,-150.0,0.00029178,2]
[328600120,1717595447799,-83.20297425,0.00029178,2]
[328600121,1717595447813,-66.79702575,0.00029178,2]
[328600122,1717595447822,-150.0,0.00029178,2]
[328600123,1717595447831,-150.0,0.00029178,2]
[328600124,1717595447841,-150.0,0.00029178,2]
[328600125,1717595447852,-306.25,0.00029178,2]
[328600126,1717595447861,-325.42886535,0.00029224,2]
[328600127,1717595447871,-170.10576068,0.00029224,2]
[328600128,1717595447880,-1008.51021015,0.00029283,2]
[328600129,1717595447890,-2388.29764854,0.00029311,2]